lending/lending_fUSD_20240110
["ID","MTS","AMOUNT","RATE_DAILY","PERIOD"]
[311001557,1704850240780,-167.51,0.00036438,90]
[311001558,1704850240789,-1234.4011,0.00036448,6]
[311001559,1704850240799,-44827.28484198,0.000365,6]
[311001560,1704850240808,-152.95,0.00036508,2]
[311001561,1704850240817,-807.152292,0.0003653,2]
[311001562,1704850240827,-1234.4011,0.00036548,6]
[311001563,1704850240836,-8092.48100141,0.000366,2]
[311001564,1704850240847,-1500.0,0.000366,23]
[311001565,1704850240856,-549.17,0.00036613,15]
[311001566,1704850240865,-150.0,0.00036627,2]
[311001567,1704850240874,-807.152292,0.00036644,2]
[311001568,1704850240885,-843.97258655,0.00036646,2]
[311001569,1704850240894,-1234.4011,0.00036648,6]
[311001570,1704850240904,-1282.15753123,0.00036697,2]
[311001571,1704850240913,-201.0,0.000367,120]
[311001572,1704850240922,-1234.4011,0.00036748,6]
[311001573,1704850240931,-807.152292,0.00036758,2]
[311001574,1704850240941,-3000.0,0.0003678,2]
[311001575,1704850240951,-34534.44780434,0.0003679,2]
[311001576,1704850240960,-163.72,0.00036838,2]
[311001577,1704850240969,-300.0,0.00036841,2]
[311001578,1704850240979,-1234.4011,0.00036848,6]
[311001579,1704850240988,-198.96491722,0.0003685,2]
[311001580,1704850240998,-546.35489508,0.00036852,2]
[311001581,1704850241007,-255.56392332,0.00036852,2]
[311001582,1704850241016,-807.152292,0.00036872,2]
[311001583,1704850241110,-250.0,0.000369,2]
[311001584,1704850241119,-2345.4011,0.00036948,6]
[311001585,1704850241128,-150.0,0.00036948,2]
[311001586,1704850241138,-150.0,0.00036948,2]
[311001587,1704850241147,-429.78093367,0.0003695,4]
[311001588,1704850241156,-789.26505123,0.0003695,2]
[311001589,1704850241165,-1269.09997503,0.0003695,4]
[311001590,1704850241175,-5704.71434411,0.0003695,4]
[311001591,1704850241185,-326.49483348,0.0003695,4]
[311001593,1704850241196,-747.79138689,0.00036951,4]
[311001595,1704850241205,-402.17174956,0.00036951,4]
[311001597,1704850241214,-1545.54073403,0.00036951,2]
[311001599,1704850241224,-282.95863908,0.00036951,4]
[311001601,1704850241233,-227086.4074,0.00036952,2]
[311001602,1704850241243,-2980.5828,0.00036952,2]
[311001603,1704850241252,-170.0,0.00036959,4]
[311001604,1704850241261,-1282.15753123,0.00036982,2]
[311001605,1704850241271,-807.152292,0.00036986,2]
[311001606,1704850241281,-13665.16438395,0.00036991,2]
[311001607,1704850241292,-494.04239114,0.00036999,2]
[311001608,1704850241302,-667.33870884,0.00037,7]
[311001609,1704850241314,-800.25,0.00037,2]
[311001610,1704850241323,-175.96,0.00037,2]
[311001611,1704850241333,-345.91472599,0.00037,120]
[311001612,1704850241342,-649.85874523,0.00037,2]
[311001613,1704850241353,-169.42909074,0.00037028,2]
[311001614,1704850241364,-2345.4011,0.00037048,6]
[311001615,1704850241374,-679.86,0.00037052,2]
[311001616,1704850241384,-1275.86,0.00037075,2]
[311001617,1704850241394,-8382.300323,0.000371,2]
[311001618,1704850241403,-150.0,0.000371,2]
[311001619,1704850241413,-1500.0,0.000371,23]
[311001620,1704850241422,-276.431819,0.000371,2]
[311001621,1704850241431,-807.152292,0.000371,2]
[311001622,1704850241442,-158.34,0.00037108,2]
[311001623,1704850241451,-8058.50252788,0.00037126,10]
[311001624,1704850241461,-2345.4011,0.00037148,6]
[311001625,1704850241471,-320.25369802,0.00037151,4]
[311001626,1704850241481,-1798.11,0.00037152,2]
[311001627,1704850241491,-2000.0,0.00037152,2]
[311001628,1704850241501,-200.0,0.00037152,2]
[311001629,1704850241511,-2000.0,0.00037152,2]
[311001630,1704850241520,-200.0,0.00037152,2]
[311001631,1704850241529,-2000.0,0.00037152,2]
[311001632,1704850241539,-200.0,0.00037152,2]
[311001633,1704850241550,-2000.0,0.00037152,2]
[311001634,1704850241560,-200.0,0.00037152,2]
[311001635,1704850241569,-250.0,0.00037174,2]
[311001636,1704850241579,-350.73108947,0.000372,2]
[311001637,1704850241589,-807.152292,0.00037214,2]
[311001638,1704850241599,-3976.41,0.00037216,10]
[311001639,1704850241609,-150.0,0.00037218,2]
[311001640,1704850241619,-27431.99977772,0.00037225,30]
[311001641,1704850241630,-4196.34957623,0.00037225,120]
[311001642,1704850241640,-9428.9850126,0.00037225,60]
[311001643,1704850241650,-7549.33974606,0.00037225,2]
[311001644,1704850241660,-14145.09337705,0.00037225,2]
[311001645,1704850241677,-34212.57310181,0.00037225,2]
[311001646,1704850241687,-386.38638849,0.00037225,3]
[311001647,1704850241698,-153.99504201,0.00037225,120]
[311001648,1704850241708,-10282.26587039,0.00037225,2]
[311001649,1704850241718,-426.99434277,0.00037225,2]
[311001650,1704850241728,-12183.39279293,0.00037225,120]
[311001651,1704850241738,-540.6474253,0.00037225,60]
[311001652,1704850241748,-3180.6266193,0.00037225,30]
[311001653,1704850241757,-446.36145622,0.00037225,120]
[311001654,1704850241768,-324.7220536,0.00037225,60]
[311001655,1704850241778,-875.05203853,0.00037225,10]
[311001656,1704850241787,-5104.50441662,0.00037225,120]
[311001657,1704850241797,-215.50609417,0.00037225,30]
[311001658,1704850241807,-303.70178349,0.00037225,15]
[311001659,1704850241816,-50131.49095591,0.00037225,120]
[311001660,1704850241826,-152.43963118,0.00037225,120]
[311001661,1704850241835,-756.0,0.00037225,120]
[311001662,1704850241845,-500.0,0.00037225,120]
[311001663,1704850241855,-4774.67028663,0.00037225,30]
[311001664,1704850241864,-4470.75019587,0.00037225,30]
[311001665,1704850241873,-1937.236888,0.00037225,30]
[311001666,1704850241882,-304.856372,0.00037225,30]
[311001667,1704850241892,-1965.399855,0.00037225,30]
[311001668,1704850241902,-1410.2166,0.00037225,30]
[311001669,1704850241911,-8058.50252778,0.00037229,10]
[311001670,1704850241920,-2345.4011,0.00037248,6]
[311001671,1704850241929,-575.97,0.000373,3]
[311001672,1704850241939,-575.97,0.000373,3]
[311001673,1704850241949,-575.97,0.000373,3]
[311001674,1704850241958,-575.97,0.000373,3]
[311001675,1704850241968,-575.97,0.000373,3]
[311001676,1704850241978,-575.97,0.000373,3]
[311001677,1704850241987,-575.97,0.000373,3]
[311001678,1704850241999,-575.97,0.000373,3]
[311001679,1704850242009,-575.97,0.000373,3]
[311001680,1704850242020,-575.97,0.000373,3]
[311001681,1704850242030,-575.97,0.000373,3]
[311001682,1704850242041,-575.97,0.000373,3]
[311001683,1704850242051,-575.97,0.000373,3]
[311001684,1704850242061,-575.97,0.000373,3]
[311001685,1704850242072,-575.97,0.000373,3]
[311001686,1704850242082,-575.97,0.000373,3]
[311001687,1704850242092,-575.97,0.000373,3]
[311001688,1704850242102,-575.97,0.000373,3]
[311001689,1704850242112,-575.97,0.000373,3]
[311001690,1704850242123,-575.97,0.000373,3]
[311001691,1704850242134,-157.67,0.000373,3]
[311001692,1704850242145,-157.67,0.000373,3]
[311001693,1704850242155,-157.67,0.000373,3]
[311001694,1704850242166,-157.67,0.000373,3]
[311001695,1704850242177,-807.152292,0.00037329,2]
[311001696,1704850242187,-8058.50252778,0.00037331,10]
[311001697,1704850242198,-701.79987499,0.00037332,2]
[311001698,1704850242207,-3456.4011,0.00037348,6]
[311001699,1704850242217,-150.0,0.00037363,2]
[311001700,1704850242227,-300.0,0.00037385,2]
[311001701,1704850242238,-8058.50252778,0.00037434,10]
[311001702,1704850242247,-807.152292,0.00037443,2]
[311001703,1704850242257,-250.0,0.00037448,2]
[311001704,1704850242267,-3456.4011,0.00037448,6]
[311001705,1704850242276,-1282.15753123,0.00037478,2]
[311001706,1704850242286,-969.36555761,0.000375,5]
[311001707,1704850242295,-8119.71627884,0.00037517,2]
[311001708,1704850242305,-2000.0,0.00037524,2]
[311001709,1704850242316,-200.0,0.00037524,2]
[311001710,1704850242326,-2000.0,0.00037524,2]
[311001711,1704850242336,-200.0,0.00037524,2]
[311001712,1704850242348,-2000.0,0.00037524,2]
[311001713,1704850242360,-200.0,0.00037524,2]
[311001714,1704850242372,-2000.0,0.00037524,2]
[311001715,1704850242381,-200.0,0.00037524,2]
[311001716,1704850242390,-150.0,0.00037525,2]
[311001717,1704850242399,-8058.50252778,0.00037537,10]
[311001718,1704850242410,-280.63557039,0.00037548,2]
[311001719,1704850242420,-3456.4011,0.00037548,6]
[311001720,1704850242429,-151.37985866,0.00037554,7]
[311001721,1704850242439,-546.35489507,0.00037554,2]
[311001722,1704850242449,-255.56392331,0.00037554,2]
[311001723,1704850242459,-807.152292,0.00037557,2]
[311001724,1704850242468,-150.0,0.00037558,2]
[311001725,1704850242477,-150.0,0.00037572,2]
[311001726,1704850242487,-1282.15753123,0.00037578,2]
[311001727,1704850242497,-204.0,0.00037595,20]
[311001728,1704850242506,-157.46353718,0.00037604,7]
[311001729,1704850242515,-150.0,0.00037636,2]
[311001730,1704850242524,-8058.50252778,0.0003764,10]
[311001731,1704850242533,-3456.4011,0.00037648,8]
[311001732,1704850242542,-150.0,0.00037654,2]
[311001733,1704850242552,-807.152292,0.00037671,2]
[311001734,1704850242562,-150.0,0.00037673,2]
[311001735,1704850242571,-454.64863558,0.00037722,2]
[311001736,1704850242580,-300.0,0.00037723,2]
[311001737,1704850242590,-8058.50252778,0.00037742,11]
[311001738,1704850242599,-3456.4011,0.00037748,8]
[311001739,1704850242608,-157.46353718,0.00037766,7]
[311001740,1704850242618,-172.39,0.00037771,2]
[311001741,1704850242627,-807.152292,0.00037785,2]
[311001742,1704850242636,-245.39937592,0.00037798,2]
[311001743,1704850242645,-7500.0,0.00037799,2]
[311001745,1704850242655,-2000.0,0.000378,2]
[311001746,1704850242664,-156.0064561,0.000378,2]
[311001747,1704850242673,-850.98938187,0.00037802,4]
[311001748,1704850242682,-825.7156914,0.00037802,6]
[311001749,1704850242692,-2817.88438146,0.00037802,7]
[311001750,1704850242702,-5490.238361,0.00037802,7]
[311001751,1704850242711,-337.50002057,0.00037802,7]
[311001752,1704850242719,-2932.50702456,0.00037802,7]
[311001753,1704850242729,-282.89468528,0.00037802,7]
[311001754,1704850242738,-12450.19956758,0.00037802,7]
[311001755,1704850242746,-6148.55,0.00037808,2]
[311001756,1704850242755,-8058.50252778,0.00037845,11]
[311001757,1704850242764,-1282.15753123,0.00037847,2]
[311001758,1704850242773,-3456.4011,0.00037848,8]
[311001759,1704850242782,-939.21,0.00037859,2]
[311001760,1704850242791,-400.84,0.00037859,2]
[311001761,1704850242800,-214.99471801,0.0003786,2]
[311001762,1704850242809,-939.21,0.0003787,2]
[311001763,1704850242818,-799.92,0.0003787,2]
[311001764,1704850242827,-1206.0,0.0003789,3]
[311001765,1704850242836,-150.0,0.00037891,2]
[311001766,1704850242845,-3396.02924901,0.00037896,4]
[311001767,1704850242854,-17258.92657975,0.00037897,4]
[311001768,1704850242863,-530.29226633,0.00037897,2]
[311001769,1704850242872,-5534.55946307,0.00037898,7]
[311001770,1704850242881,-386.38055922,0.00037898,4]
[311001771,1704850242890,-544.64705315,0.00037898,4]
[311001772,1704850242899,-244.04605305,0.00037898,4]
[311001773,1704850242908,-522.65539933,0.00037898,4]
[311001774,1704850242917,-404.50678455,0.00037898,4]
[311001775,1704850242926,-1254.29308321,0.00037898,4]
[311001776,1704850242935,-73964.59029298,0.00037898,10]
[311001777,1704850242945,-151.0,0.00037899,7]
[311001778,1704850242955,-242.118197,0.00037899,7]
[311001779,1704850242964,-151.0,0.00037899,7]
[311001780,1704850242973,-209.975921,0.00037899,7]
[311001781,1704850242982,-209.975921,0.00037899,7]
[311001782,1704850242992,-526.82413509,0.00037899,2]
[311001783,1704850243001,-2000.0,0.00037899,2]
[311001784,1704850243013,-200.0,0.00037899,2]
[311001785,1704850243023,-269.41688063,0.00037899,2]
[311001786,1704850243032,-2000.0,0.00037899,2]
[311001787,1704850243041,-200.0,0.00037899,2]
[311001788,1704850243050,-2000.0,0.00037899,2]
[311001789,1704850243061,-200.0,0.00037899,2]
[311001790,1704850243070,-807.152292,0.00037899,2]
[311001791,1704850243080,-2000.0,0.00037899,2]
[311001792,1704850243090,-200.0,0.00037899,2]
[311001793,1704850243099,-159.66,0.000379,2]
[311001794,1704850243109,-151.0,0.000379,7]
[311001795,1704850243119,-151.0,0.000379,7]
[311001796,1704850243129,-112105.77176235,0.000379,2]
[311001797,1704850243143,-2918.78082554,0.000379,2]
[311001798,1704850243176,-914.06,0.000379,2]
[311001799,1704850243188,-252.58751605,0.000379,2]
[311001800,1704850243204,-475.12296537,0.000379,2]
[311001801,1704850243246,-651.4313828,0.000379,2]
[311001802,1704850243258,-320.02750419,0.000379,2]
[311001806,1704850243528,-11704.57994014,0.000379,2]
[311001807,1704850243539,-1709.719909,0.000379,2]
[311001808,1704850243550,-950.73204327,0.000379,2]
[311001809,1704850244534,-801.40906844,0.00032,2]
[311001810,1704850244654,-991.77166717,0.00032,2]
[311001811,1704850244996,-719.74,0.00032,2]
[311001834,1704850247035,-325.71588619,0.00031999,4]
[311001835,1704850247045,-976.78058995,0.00031999,4]
[311001836,1704850247058,-625.15762086,0.00031999,4]
[311001837,1704850247078,-273.2960334,0.00029688,2]
[311001838,1704850247088,-3575.27701114,0.00031999,4]
[311001839,1704850247098,-4703.39946516,0.00031999,4]
[311001840,1704850247110,-865.07617275,0.00031999,4]
[311001841,1704850247139,-1585.78943517,0.00031999,4]
[311001842,1704850247149,-2255.68365387,0.00032,2]
[311001843,1704850247162,-8909.72260701,0.00032,2]
[311001844,1704850247173,-361.10048733,0.00037278,2]
[311001845,1704850247184,-5456.78990625,0.000378,2]
[311001846,1704850247204,-380.38328225,0.00031999,4]
[311001847,1704850247213,-52.95474213,0.000378,2]
[311001848,1704850247229,-8155.41973557,0.000378,2]
[311001849,1704850247238,-150.0,0.00037897,2]
[311001850,1704850247250,-300.0,0.00037897,7]
[311001851,1704850247260,-450.0,0.00037897,12]
[311001852,1704850247271,-600.0,0.00037897,17]
[311001853,1704850247282,-597.02329388,0.00037897,22]
[311001854,1704850247292,-281871.10369267,0.000379,2]
[311001855,1704850247306,-2397.35460174,0.000379,2]
[311001858,1704850265102,2432.2025,0.00022436,2]
[311001860,1704850272762,500.0,0.00022435,2]
[311001862,1704850297597,358.7793,0.00022434,2]
[311001863,1704850311443,24557.464,0.00022434,2]
[311001866,1704850327358,9131.4057,0.00022434,2]
[311001868,1704850745824,164.81975086,0.00022409,2]
[311001872,1704850844882,1912.10611571,0.000225,2]
[311001873,1704850849236,866.58695818,0.000225,2]
[311001874,1704850853129,527.38210729,0.000225,2]
[311001875,1704850859897,155.0,0.000225,2]
[311001876,1704850888342,3185.89838635,0.000225,2]
[311001878,1704850890932,5093.19074374,0.00022501,2]
[311001879,1704850892227,3853.32732948,0.000225,2]
[311001880,1704850999576,651.59321188,0.00028,30]
[311001881,1704851230108,-421.49763438,0.00022501,2]
[311001887,1704851312076,155.64847591,0.0002077,2]
[311001888,1704851330466,198.27437832,0.00022478,2]
[311001923,1704851431967,-136.43225045,0.00022501,2]
[311001925,1704851431978,-213.02545095,0.00022501,2]
[311001927,1704851431988,-732.47,0.00022576,2]
[311001929,1704851431998,-301.21038916,0.00022578,2]
[311001931,1704851432008,-824.05532507,0.00022579,2]
[311001932,1704851432043,-3441.37295259,0.00022579,2]
[311001933,1704851432052,-318.17700689,0.00022579,2]
[311001934,1704851432062,-150.0,0.0002258,2]
[311001935,1704851432071,-1470.59010612,0.0002258,2]
[311001936,1704851432081,-449.33,0.00022581,2]
[311001937,1704851432091,-3079.764,0.00022581,2]
[311001938,1704851432100,-206.0,0.00024255,2]
[311001939,1704851432110,-204.0,0.00024255,2]
[311001940,1704851432119,-204.0,0.00024255,2]
[311001941,1704851432129,-164.81975081,0.0002436,2]
[311001942,1704851432138,-350.0,0.00025,3]
[311001943,1704851432147,-1016.9503095,0.00025,2]
[311001944,1704851432157,-301.22481958,0.00025,2]
[311001945,1704851432248,-231.79908309,0.00025,2]
[311001946,1704851432258,-499.99,0.00025,2]
[311001947,1704851432269,-404.82,0.00025,2]
[311001948,1704851432279,-150.99,0.00025,2]
[311001949,1704851432289,-311.33,0.00025175,2]
[311001950,1704851432299,-164.81975081,0.0002631,2]
[311001951,1704851432309,-4181.18,0.0002631,2]
[311001952,1704851432320,-322.3253947,0.000266,2]
[311001953,1704851432330,-206.0,0.00026638,5]
[311001954,1704851432340,-400.0,0.00027,3]
[311001955,1704851432350,-223.3,0.00027126,2]
[311001956,1704851432360,-250.0,0.00027158,2]
[311001957,1704851432370,-186.36,0.00027201,2]
[311001958,1704851432382,-2382.7,0.00027215,2]
[311001960,1704851432392,-381.89,0.00027222,2]
[311001962,1704851432401,-883.48605193,0.00027263,2]
[311001965,1704851432423,-745.35826249,0.00027263,2]
[311001971,1704851432475,-329.25412336,0.00027263,2]
[311001974,1704851432486,-41.90156222,0.00027263,2]
[311001976,1704851432496,-578.42,0.000273,2]
[311001978,1704851432506,-154.37,0.00027309,2]
[311001980,1704851432515,-150.0,0.00027372,2]
[311001982,1704851432525,-75.18269778,0.00027397,2]
[311001984,1704851432537,-301.52504693,0.00027397,2]
[311001997,1704851432647,-401.74613815,0.00027397,2]
[311001999,1704851432656,-250.0,0.00027397,2]
[311002001,1704851432666,-201.97233736,0.000274,2]
[311002005,1704851432688,-54.35870644,0.000274,2]
[311002007,1704851432699,-163.25,0.00027422,2]
[311002009,1704851432709,-311.33,0.00027439,2]
[311002011,1704851432720,-150.0,0.00027501,2]
[311002013,1704851432730,-173.65342554,0.00027531,2]
[311002016,1704851432743,-76.34657446,0.00027531,2]
[311002018,1704851432752,-161.58,0.0002758,2]
[311002020,1704851432762,-200.0,0.00027618,2]
[311002022,1704851432772,-1189.03,0.00027645,2]
[311002024,1704851432782,-162.26,0.00027672,2]
[311002026,1704851432792,-154.37,0.00027699,2]
[311002028,1704851432802,-200.0,0.00027766,2]
[311002030,1704851432812,-684.6,0.00027766,2]
[311002032,1704851432823,-5266.07,0.00027808,2]
[311002035,1704851432833,-200.0,0.00028,2]
[311002037,1704851432842,-507.91231117,0.00028,2]
[311002039,1704851432853,-687.51052193,0.00028,2]
[311002041,1704851432864,-154.37,0.00028089,2]
[311002043,1704851432874,-223.3,0.00028105,2]
[311002045,1704851432885,-272.94,0.00028142,2]
[311002047,1704851432897,-164.81975081,0.00028261,2]
[311002049,1704851432907,-162.26,0.00028393,2]
[311002051,1704851432917,-154.37,0.00028479,2]
[311002052,1704851432927,-3185.89838635,0.00028798,2]
[311002053,1704851432942,-761.99,0.0002885,2]
[311002054,1704851432952,-154.37,0.00028869,2]
[311002055,1704851432965,-450.0,0.00029,3]
[311002056,1704851432976,-1040.01518079,0.00029,2]
[311002057,1704851432986,-600.0,0.00029,30]
[311002058,1704851432997,-206.0,0.00029021,9]
[311002059,1704851433007,-223.3,0.00029083,2]
[311002060,1704851433019,-162.26,0.00029114,2]
[311002061,1704851433029,-154.37,0.0002926,2]
[311002062,1704851433039,-155.61,0.00029587,2]
[311002063,1704851433049,-154.37,0.0002965,2]
[311002064,1704851433060,-311.33,0.00029703,2]
[311002065,1704851433070,-431.83926903,0.00029898,2]
[311002066,1704851433080,-284.2618957,0.00029899,2]
[311002067,1704851433091,-403.09952743,0.00029899,2]
[311002068,1704851433101,-757.87465932,0.00029899,2]
[311002069,1704851433111,-679.86,0.000299,2]
[311002070,1704851433122,-1000.0,0.000299,2]
[311002071,1704851433133,-211.83049952,0.000299,2]
[311002072,1704851433147,-985.77710048,0.000299,2]
[311002073,1704851433158,-975.7545,0.000299,2]
[311002074,1704851433169,-1837.2817,0.000299,2]
[311002075,1704851433179,-234.2558,0.000299,2]
[311002076,1704851433190,-170.38870431,0.000299,2]
[311002077,1704851433204,-376.68626248,0.000299,2]
[311002078,1704851433215,-1000.0,0.00029998,2]
[311002079,1704851433226,-1493.02271791,0.00029998,2]
[311002080,1704851433237,-872.24571251,0.00029998,2]
[311002081,1704851433247,-528.71732122,0.00029998,2]
[311002082,1704851433258,-177.8261193,0.00029998,2]
[311002083,1704851433268,-2977.86084822,0.00029998,2]
[311002084,1704851433279,-2949.20104175,0.00029998,2]
[311002085,1704851433289,-320.94773522,0.00029998,2]
[311002086,1704851433299,-32686.76370724,0.0003,2]
[311002087,1704851433313,-410.69107254,0.0003,2]
[311002088,1704851433326,-16315.53869272,0.0003,2]
[311002089,1704851433339,-935.31158802,0.0003,2]
[311002090,1704851433352,-455.94522447,0.0003,2]
[311002091,1704851433401,-457.42302,0.0003,2]
[311002092,1704851433414,-345.85363924,0.0003,2]
[311002093,1704851433427,-300.96616691,0.0003,2]
[311002094,1704851434164,-578.53223834,0.0003,2]
[311002104,1704851438295,-1935.14523817,0.0003,2]
[311002105,1704851438306,-2734.29732592,0.0003,2]
[311002106,1704851438318,-616.01249581,0.0003,2]
[311002107,1704851438397,-281.55,0.0003,2]
[311002108,1704851438416,-1336.35499894,0.0003,2]
[311002109,1704851438428,-1140.7701598,0.0003,2]
[311002110,1704851438439,-2280.45028336,0.0003,2]
[311002111,1704851438454,-2027.33882137,0.0003,2]
[311002114,1704851438479,-49968.75768268,0.0003,2]
[311002116,1704851438488,-154186.73283524,0.0003,2]
[311002118,1704851438497,-155.0,0.0003,2]
[311002119,1704851438506,-9620.2298148,0.0003,2]
[311002121,1704851438515,-600.0,0.0003,31]
[311002123,1704851438524,-791.57141352,0.0003,2]
[311002126,1704851438533,-157.16627133,0.0003,2]
[311002127,1704851438543,-163.25,0.00030001,2]
[311002129,1704851438552,-450.0,0.0003002,3]
[311002131,1704851438562,-154.37,0.0003004,2]
[311002133,1704851438570,-223.3,0.00030062,2]
[311002135,1704851438579,-326.53251772,0.000301,4]
[311002137,1704851438588,-10000.0,0.00030137,2]
[311002139,1704851438598,-155.11,0.00030137,2]
[311002141,1704851438607,-164.81975081,0.00030212,2]
[311002143,1704851438616,-155.61,0.00030326,2]
[311002145,1704851438625,-151.0,0.00030924,120]
[311002147,1704851438634,-500.0,0.00031,3]
[311002149,1704851438643,-600.0,0.00031,32]
[311002151,1704851438654,-205.65,0.00031,2]
[311002153,1704851438663,-223.3,0.0003104,2]
[311002155,1704851438672,-155.61,0.00031066,2]
[311002157,1704851438681,-206.0,0.00031404,13]
[311002159,1704851438690,-155.11,0.00031507,2]
[311002161,1704851438699,-151.0,0.00031555,30]
[311002163,1704851438708,-161.14,0.00031717,2]
[311002165,1704851438719,-479.3333756,0.000318,2]
[311002167,1704851438728,-155.61,0.00031806,2]
[311002169,1704851438737,-311.33,0.00031967,2]
[311002171,1704851438747,-6448.54159765,0.00031999,4]
[311002173,1704851438756,-766.91078743,0.00031999,2]
[311002175,1704851438765,-300.0,0.00031999,2]
[311002177,1704851438774,-300.0,0.00031999,2]
[311002179,1704851438783,-300.0,0.00031999,2]
[311002181,1704851438792,-300.0,0.00031999,2]
[311002183,1704851438801,-308.94686484,0.00031999,2]
[311002185,1704851438811,-600.0,0.00032,33]
[311002187,1704851438820,-334.679881,0.00032,2]
[311002189,1704851438829,-298.40382139,0.00032,4]
[311002191,1704851438838,-1808.92375124,0.00032,4]
[311002193,1704851438847,-710.28,0.00032,2]
[311002195,1704851438856,-223.3,0.00032018,2]
[311002197,1704851438867,-170.38870431,0.00032161,2]
[311002199,1704851438877,-164.81975081,0.00032163,2]
[311002201,1704851438886,-151.0,0.00032199,7]
[311002204,1704851438899,-424.14,0.00032436,2]
[311002206,1704851438908,-155.61,0.00032545,2]
[311002207,1704851438918,-163.25,0.0003258,2]
[311002209,1704851438928,-155.0,0.000326,4]
[311002211,1704851438937,-1772.8,0.00032778,2]
[311002212,1704851438946,-150.0,0.00032819,2]
[311002214,1704851438955,-173.51,0.00032856,2]
[311002216,1704851438967,-151.0,0.00032856,4]
[311002218,1704851438977,-532.71468518,0.00032876,2]
[311002219,1704851438986,-527.39,0.00032877,15]
[311002221,1704851438995,-155.11,0.00032877,2]
[311002223,1704851439004,-223.3,0.00032997,2]
[311002225,1704851439013,-550.0,0.00033,3]
[311002226,1704851439022,-600.0,0.00033,34]
[311002228,1704851439032,-1457.63884427,0.00033,5]
[311002230,1704851439041,-150.0,0.00033021,2]
[311002232,1704851439050,-150.0,0.00033099,2]
[311002233,1704851439060,-150.0,0.00033392,2]
[311002235,1704851439070,-151.0,0.00033527,2]
[311002237,1704851439079,-150.0,0.00033542,2]
[311002239,1704851439089,-150.0,0.00033729,2]
[311002240,1704851439099,-239.6666878,0.00033771,5]
[311002242,1704851439108,-9585.68517976,0.00033781,2]
[311002244,1704851439118,-206.0,0.00033787,17]
[311002246,1704851439127,-169.32,0.00033791,2]
[311002247,1704851439136,-150.0,0.0003392,2]
[311002249,1704851439146,-150.0,0.00033935,2]
[311002251,1704851439155,-150.0,0.00033953,2]
[311002253,1704851439164,-223.3,0.00033975,2]
[311002255,1704851439173,-1000.0,0.00034,4]
[311002256,1704851439182,-1706.63,0.00034,10]
[311002258,1704851439191,-600.0,0.00034,35]
[311002260,1704851439200,-805.31109743,0.00034,4]
[311002261,1704851439209,-150.0,0.00034024,2]
[311002263,1704851439220,-221.11821909,0.00034038,2]
[311002265,1704851439229,-150.0,0.00034043,2]
[311002267,1704851439238,-164.81975081,0.00034113,2]
[311002268,1704851439246,-167.14,0.00034125,2]
[311002270,1704851439255,-150.0,0.00034155,2]
[311002272,1704851439265,-575.85980879,0.00034176,2]
[311002274,1704851439274,-910.0,0.000342,2]
[311002275,1704851439283,-150.0,0.00034206,2]
[311002277,1704851439293,-311.33,0.00034231,2]
[311002279,1704851439302,-155.11,0.00034247,2]
[311002280,1704851439311,-170.38870431,0.00034421,2]
[311002282,1704851439320,-150.0,0.00034436,2]
[311002284,1704851439329,-227.92481117,0.00034464,2]
[311002286,1704851439338,-150.0,0.00034498,2]
[311002288,1704851439347,-6070.47359,0.0003452,2]
[311002290,1704851439356,-3197.37,0.00034521,2]
[311002291,1704851439366,-3646.55456189,0.00034572,4]